fUSD/lending_fUSD_20240319
["ID","MTS","AMOUNT","RATE_DAILY","PERIOD"]
[319552339,1710847837879,-150.95,0.00021301,2]
[319552340,1710847837888,-875.2,0.00021415,2]
[319552341,1710847837897,-222.0,0.00021445,2]
[319552342,1710847837907,-504.12,0.00021519,2]
[319552343,1710847837916,-168.09,0.00021556,2]
[319552344,1710847837925,-200.0,0.00021593,2]
[319552345,1710847837933,-219.39287728,0.00021744,2]
[319552346,1710847837942,-250.0,0.00021918,2]
[319552347,1710847837952,-156.01,0.00021918,10]
[319552348,1710847837960,-219.39287728,0.00022324,2]
[319552349,1710847837969,-746.15813072,0.00022498,2]
[319552350,1710847837978,-219.39287728,0.00022905,2]
[319552351,1710847837987,-1059.91,0.00023347,2]
[319552352,1710847837996,-219.39287728,0.00023486,2]
[319552353,1710847838006,-285.9682395,0.00023498,2]
[319552354,1710847838015,-773.39,0.0002354,2]
[319552355,1710847838024,-4195.137,0.000239,2]
[319552356,1710847838035,-234.23091947,0.00024,2]
[319552358,1710847838043,-824.76795094,0.00024,2]
[319552360,1710847838052,-171.53262849,0.00024,2]
[319552361,1710847838062,-23421.90470355,0.00024,2]
[319552363,1710847838072,-150.0,0.0002406,2]
[319552365,1710847838081,-219.39287728,0.00024067,2]
[319552368,1710847838091,-875.2,0.00024092,2]
[319552369,1710847838100,-222.0,0.00024125,2]
[319552372,1710847838110,-643.37964686,0.00024496,2]
[319552373,1710847838121,-219.39287728,0.00024648,2]
[319552375,1710847838131,-1407.0,0.00024868,4]
[319552377,1710847838142,-163.3317181,0.00024899,2]
[319552378,1710847838152,-15037.4224,0.000249,2]
[319552379,1710847838161,-4033.4042,0.000249,2]
[319552380,1710847838170,-11329.41073966,0.00024974,2]
[319552381,1710847838180,-4532.48189752,0.00024996,2]
[319552382,1710847838189,-972.57464842,0.00024996,2]
[319552383,1710847838199,-23188.28687588,0.00024997,2]
[319552384,1710847838209,-513.22565398,0.00024998,2]
[319552385,1710847838218,-270.02185267,0.00024998,2]
[319552386,1710847838227,-202.76653755,0.00024998,2]
[319552387,1710847838236,-548.10301066,0.00024998,2]
[319552388,1710847838245,-155.0,0.00024998,2]
[319552389,1710847838254,-361.41518593,0.00024998,2]
[319552390,1710847838264,-1000.0,0.00024998,2]
[319552391,1710847838273,-255.74446782,0.00024998,2]
[319552392,1710847838282,-297.46399951,0.00024998,2]
[319552393,1710847838291,-406.20702838,0.00024998,2]
[319552394,1710847838300,-679.18882137,0.00024998,2]
[319552395,1710847838309,-710.13127514,0.00024998,2]
[319552396,1710847838319,-782.03241683,0.00024998,2]
[319552397,1710847838328,-19373.70530424,0.00024998,2]
[319552398,1710847838337,-12742.53062275,0.00024998,2]
[319552399,1710847838347,-1235.65513298,0.00024998,2]
[319552400,1710847838356,-3668.7389686,0.00024999,2]
[319552401,1710847838367,-131115.97842589,0.00025,2]
[319552402,1710847838376,-429.79322038,0.00025,5]
[319552403,1710847838386,-155.0817669,0.00025025,2]
[319552404,1710847838395,-219.39287728,0.00025228,2]
[319552405,1710847838405,-150.0,0.000254,2]
[319552406,1710847838414,-356.5,0.000254,2]
[319552407,1710847838424,-205.87574156,0.000254,10]
[319552408,1710847838433,-301.9961357,0.00025439,2]
[319552409,1710847838443,-181.92,0.00025462,2]
[319552410,1710847838452,-157.49099606,0.00025539,2]
[319552411,1710847838462,-1059.91,0.00025611,2]
[319552412,1710847838471,-170.20767971,0.00025756,2]
[319552413,1710847838480,-219.39287728,0.00025809,2]
[319552414,1710847838490,-278.15737873,0.00025948,2]
[319552415,1710847838500,-170.20767971,0.0002597,2]
[319552416,1710847838509,-773.39,0.00026279,2]
[319552417,1710847838518,-175.55512903,0.0002629,3]
[319552418,1710847838527,-661.3571,0.000263,2]
[319552419,1710847838536,-388.90700658,0.00026384,2]
[319552420,1710847838545,-386.11588003,0.00026384,2]
[319552421,1710847838554,-865.00388892,0.00026384,2]
[319552422,1710847838563,-1233.55911416,0.00026384,2]
[319552423,1710847838572,-1090.0395472,0.00026384,11]
[319552424,1710847838581,-164.31610949,0.00026385,2]
[319552425,1710847838591,-3968.89051762,0.0002639,2]
[319552426,1710847838601,-216.78377606,0.0002639,2]
[319552427,1710847838610,-292.6514104,0.0002639,2]
[319552428,1710847838622,-219.39287728,0.0002639,2]
[319552429,1710847838631,-168.37297435,0.00026396,2]
[319552430,1710847838640,-175.21565854,0.00026396,2]
[319552431,1710847838649,-223.86181504,0.00026396,2]
[319552432,1710847838658,-277.05147729,0.00026398,2]
[319552433,1710847838667,-259.03817803,0.00026398,2]
[319552434,1710847838676,-1400.61508411,0.00026399,2]
[319552435,1710847838685,-2624.34705998,0.00026399,2]
[319552436,1710847838694,-500.0,0.00026399,2]
[319552437,1710847838703,-550.0,0.00026399,2]
[319552438,1710847838713,-500.0,0.00026399,2]
[319552439,1710847838722,-214.10398536,0.00026399,2]
[319552440,1710847838731,-306.04456516,0.00026399,2]
[319552441,1710847838740,-2602.72067,0.00026399,2]
[319552442,1710847838749,-164.31610949,0.00026399,2]
[319552443,1710847838759,-2718147.17323333,0.000264,5]
[319552444,1710847838769,-235.40678625,0.00026484,2]
[319552445,1710847838778,-828.885846,0.00026637,2]
[319552446,1710847838787,-157.49099606,0.00026669,2]
[319552447,1710847838799,-300.0,0.00026695,2]
[319552448,1710847838808,-875.2,0.00026769,2]
[319552449,1710847838818,-164.48,0.00026805,120]
[319552450,1710847838827,-222.0,0.00026806,120]
[319552451,1710847838838,-191.24783951,0.00026928,2]
[319552452,1710847838848,-350.0,0.00027,3]
[319552453,1710847838858,-158.99011171,0.00027035,2]
[319552454,1710847838884,-191.24783951,0.00027079,2]
[319552455,1710847838896,-163.47146467,0.00027126,2]
[319552456,1710847838906,-157.49099606,0.00027146,2]
[319552457,1710847838916,-167.02,0.00027162,2]
[319552458,1710847838926,-309.25214321,0.00027397,10]
[319552459,1710847838937,-191.24783951,0.00027409,2]
[319552460,1710847838946,-191.24783951,0.00027423,2]
[319552461,1710847838956,-150.0,0.00027497,2]
[319552462,1710847838965,-601.02,0.00027643,2]
[319552463,1710847838975,-1059.91,0.00027875,2]
[319552464,1710847838984,-191.24783951,0.00027881,2]
[319552465,1710847838993,-157.49099606,0.00027884,2]
[319552466,1710847839002,-163.47146467,0.00028098,2]
[319552467,1710847839012,-3968.8905176,0.00028365,2]
[319552468,1710847839021,-155.90706027,0.00028393,2]
[319552469,1710847839030,-421.46,0.00028948,2]
[319552470,1710847839041,-400.0,0.00029,3]
[319552471,1710847839050,-265.3,0.00029116,2]
[319552472,1710847839224,-265.3,0.00029116,2]
[319552473,1710847839259,-265.3,0.00029116,2]
[319552474,1710847839270,-265.3,0.00029116,2]
[319552475,1710847839280,-175.55512901,0.00029173,4]
[319552476,1710847839290,-875.2,0.00029446,2]
[319552477,1710847839300,-164.48,0.00029485,120]
[319552478,1710847839309,-222.0,0.00029487,120]
[319552479,1710847839319,-157.49099606,0.00029539,2]
[319552481,1710847839329,-157.49099606,0.000298,2]
[319552483,1710847839338,-152.52569142,0.000299,2]
[319552485,1710847839348,-152.5256914,0.000299,2]
[319552487,1710847839357,-150.0,0.00029938,2]
[319552489,1710847839368,-165.42466787,0.00029985,2]
[319552491,1710847839378,-12765.88440702,0.0003,7]
[319552493,1710847839387,-11764.46811275,0.0003,7]
[319552495,1710847839397,-271.55242602,0.0003,4]
[319552497,1710847839406,-187.8324566,0.0003,4]
[319552499,1710847839415,-223.0120948,0.0003,4]
[319552501,1710847839425,-5664.06579359,0.0003,4]
[319552503,1710847839434,-23616.24783885,0.0003,4]
[319552504,1710847839444,-1593.03756627,0.0003,4]
[319552506,1710847839453,-504.69720845,0.0003,4]
[319552508,1710847839462,-500.0,0.0003,2]
[319552510,1710847839472,-156.01,0.00030137,10]
[319552512,1710847839481,-1059.91,0.00030139,2]
[319552514,1710847839490,-3968.8905176,0.00030341,2]
[319552516,1710847839500,-157.49099606,0.00030712,7]
[319552518,1710847839510,-150.0,0.00030934,2]
[319552520,1710847839519,-450.0,0.00031,3]
[319552522,1710847839530,-158.99011171,0.00031279,7]
[319552524,1710847839540,-158.02,0.00031374,2]
[319552525,1710847839549,-2602.72067,0.00031399,2]
[319552526,1710847839560,-1090.03954717,0.00031407,19]
[319552527,1710847839570,-164.31610949,0.00031924,7]
[319552529,1710847839580,-175.55512901,0.00032057,5]
[319552531,1710847839589,-151.01273991,0.00032101,7]
[319552533,1710847839599,-875.2,0.00032123,2]
[319552535,1710847839608,-164.48,0.00032166,120]
[319552536,1710847839620,-222.0,0.00032167,120]
[319552537,1710847839630,-3968.8905176,0.00032316,4]
[319552538,1710847839639,-168.09,0.00032335,2]
[319552539,1710847839649,-1059.91,0.00032402,2]
[319552540,1710847839658,-223.861815,0.00032443,2]
[319552541,1710847839668,-170.20767971,0.00032463,7]
[319552542,1710847839678,-500.0,0.00033,3]
[319552543,1710847839688,-157.49099606,0.00033134,7]
[319552544,1710847839699,-152.5256914,0.00033179,2]
[319552545,1710847839708,-155.90706028,0.00033303,7]
[319552546,1710847839719,-158.49,0.000335,2]
[319552547,1710847839728,-158.49,0.000335,2]
[319552548,1710847839739,-3968.8905176,0.00034291,6]
[319552549,1710847839749,-1059.91,0.00034666,2]
[319552550,1710847839760,-191.24783951,0.00034772,7]
[319552551,1710847839769,-175.55512901,0.0003494,7]
[319552552,1710847839782,-191.24783951,0.0003514,7]
[319552553,1710847839792,-191.24783951,0.00035224,7]
[319552554,1710847839802,-191.24783951,0.00035318,7]
[319552555,1710847839812,-170.20767975,0.00035485,7]
[319552556,1710847839822,-164.03,0.00035849,2]
[319552557,1710847839832,-191.24783951,0.00036001,7]
[319552558,1710847839842,-3968.8905176,0.00036267,9]
[319552559,1710847839852,-2602.72067,0.00036399,2]
[319552560,1710847839864,-865.00388891,0.0003643,2]
[319552561,1710847839875,-1233.55911414,0.0003643,2]
[319552562,1710847839885,-1090.03954717,0.0003643,26]
[319552563,1710847839895,-152.5256914,0.00036523,2]
[319552564,1710847839905,-388.90700657,0.00036567,2]
[319552565,1710847839915,-1375.76273349,0.000366,2]
[319552566,1710847839926,-1375.76273345,0.000366,2]
[319552567,1710847839935,-1375.76273345,0.000366,2]
[319552568,1710847839946,-1375.76273345,0.000366,2]
[319552569,1710847839955,-1375.76273345,0.000366,2]
[319552570,1710847839965,-235.40678623,0.00036617,2]
[319552571,1710847839975,-191.24783951,0.00036808,7]
[319552572,1710847839985,-1180662.73568586,0.0003688,6]
[319552573,1710847840059,-355.04522889,0.0003688,6]
[319552574,1710847840072,-636.58066627,0.0003688,6]
[319552575,1710847840084,-664.88675611,0.0003688,6]
[319552576,1710847840101,-285.49172499,0.0003688,6]
[319552577,1710847840160,-7300.0,0.0003688,6]
[319552578,1710847840173,-105308.37857898,0.0003688,6]
[319552579,1710847840198,-407.93372637,0.0003688,6]
[319552580,1710847840211,-674350.02557709,0.0003688,6]
[319552581,1710847840241,-1245.32090255,0.0003688,6]
[319552582,1710847840254,-37639.03075396,0.0003688,6]
[319552583,1710847840292,-4864.00702613,0.0003688,6]
[319552584,1710847840304,-859.3649183,0.0003688,6]
[319552585,1710847840316,-286.81708678,0.0003688,6]
[319552589,1710847841347,-274.6786658,0.0002177,2]
[319552590,1710847841359,-896.7913342,0.0002177,2]
[319552591,1710847841373,-587.56262808,0.00026384,2]
[319552592,1710847841383,-312640.64603772,0.0003688,6]
[319552593,1710847841415,-3210.0,0.0003688,6]
[319552594,1710847841428,-8650.18523851,0.0003688,6]
[319552599,1710847841732,-946.39801959,0.0003688,6]
[319552609,1710847842420,-62751.10444393,0.0003688,6]
[319552610,1710847842432,-250.88435291,0.0003688,6]
[319552611,1710847842450,-487.43243062,0.0003688,6]
[319552612,1710847842476,-790.59216382,0.0003688,6]
[319552615,1710847842519,-321.31728623,0.0003688,6]
[319552616,1710847842532,-690.45224742,0.0003688,6]
[319552617,1710847842544,-1253.6524,0.0003688,6]
[319552618,1710847842556,-6422.56800006,0.0003688,6]
[319552619,1710847842579,-313.51,0.0003688,6]
[319552620,1710847842592,-20989.75826749,0.0003688,6]
[319552621,1710847842605,-1072.66280005,0.0003688,6]
[319552624,1710847842971,-530.26584947,0.0003688,6]
[319552625,1710847842984,-18964.79714207,0.0003688,6]
[319552626,1710847842996,-1062.0636,0.0003688,6]
[319552627,1710847843021,-1204.68758896,0.0003688,6]
[319552628,1710847843033,-2619.87732612,0.0003688,6]
[319552629,1710847843046,-6014.05035418,0.0003688,6]
[319552630,1710847843057,-3984.07423953,0.0003688,6]
[319552631,1710847843070,-4303.78466722,0.0003688,6]
[319552632,1710847843087,-1871.05949707,0.0003688,6]
[319552633,1710847843099,-6717.03681771,0.0003688,6]
[319552634,1710847843151,-599.31971816,0.0003688,6]
[319552635,1710847843172,-2169.20872253,0.0003688,6]
[319552636,1710847843184,-6689.335664,0.0003688,6]
[319552638,1710847843195,-304.33057492,0.0003688,6]
[319552640,1710847843207,-636.03403185,0.0003688,6]
[319552641,1710847843219,-1287.81814835,0.0003688,6]
[319552642,1710847843231,-449348.55063053,0.0003688,6]
[319552643,1710847843259,-20161.95207209,0.0003688,6]
[319552644,1710847843271,-941.87009089,0.0003688,6]
[319552645,1710847843283,-4470.07152025,0.0003688,6]
[319552646,1710847843294,-1319.92961057,0.0003688,6]
[319552647,1710847843306,-3369.65,0.0003688,6]
[319552648,1710847843318,-1083.98352018,0.0003688,6]
[319552649,1710847843330,-4525.92288204,0.0003688,6]
[319552650,1710847843348,-12333.68264524,0.0003688,6]
[319552651,1710847843360,-13075.89801312,0.0003688,6]
[319552652,1710847843376,-4329.24617616,0.0003688,6]
[319552653,1710847843388,-44697.27392536,0.0003688,6]
[319552654,1710847843400,-313.39182739,0.0003688,6]
[319552687,1710847845679,-855.0464807,0.00021082,2]
[319552690,1710847845691,-267.0802101,0.00021082,2]
[319552696,1710847845824,-635.38561209,0.00021082,2]
[319552703,1710847845908,-3223.43399999,0.00021082,2]
[319552704,1710847845921,-370.9489965,0.00021082,2]
[319552705,1710847845931,-15.00371904,0.00026399,2]
[319552706,1710847845944,-484.99628096,0.00026399,2]
[319552708,1710847845954,-412.1963515,0.00026399,2]
[319552710,1710847845965,-326.55105149,0.00026399,2]
[319552712,1710847845975,-401.78693322,0.00026399,2]
[319552713,1710847845985,-456.61150048,0.00026399,2]
[319552714,1710847845995,-500.0,0.00026399,2]
[319552715,1710847846005,-268.65551318,0.00026399,2]
[319552716,1710847846016,-271.52061452,0.00026399,2]
[319552717,1710847846025,-342.69168916,0.00026399,2]
[319552718,1710847846034,-500.0,0.00026399,2]
[319552719,1710847846044,-500.0,0.00026399,2]
[319552720,1710847846054,-500.0,0.00026399,2]
[319552721,1710847846064,-66.95146549,0.00036841,2]
[319552722,1710847846077,-520.61116257,0.00036841,2]
[319552723,1710847846087,-299.42805953,0.00036879,4]
[319552724,1710847846096,-444.58223786,0.00036879,4]
[319552725,1710847846106,-193.48944884,0.00036879,4]
[319552726,1710847846115,-4798.2890912,0.0003688,6]
[319552728,1710847846160,-290.4902482,0.00024998,2]
[319552730,1710847846170,-500.0,0.00026399,2]
[319552731,1710847846179,-7753.46736301,0.0003688,6]
[319552732,1710847846192,-6944.01407125,0.0003688,6]
[319552733,1710847846205,-17582.21038927,0.0003688,6]
[319552734,1710847846216,-48150.00000006,0.0003688,6]
[319552735,1710847846229,-7401.32242867,0.0003688,6]
[319552736,1710847846240,-6271.4,0.0003688,6]
[319552737,1710847846251,-432.15154667,0.0003688,6]
[319552738,1710847847257,-387.53754655,0.00026399,2]
[319552739,1710847847270,-112.46245345,0.00026399,2]
[319552740,1710847847281,-491.80042878,0.00026399,2]
[319552741,1710847847294,-8.19957122,0.00026399,2]
[319552742,1710847847305,-500.0,0.00026399,2]
[319552743,1710847847315,-62281.35582872,0.0003688,6]
[319552744,1710847847328,-553.56974129,0.0003688,6]
[319552745,1710847847340,-2535.69755095,0.0003688,6]
[319552746,1710847847362,-335.2637623,0.00026399,2]
[319552747,1710847847380,-164.7362377,0.00026399,2]
[319552748,1710847847390,-343.53915486,0.0003688,6]
[319552749,1710847847411,-776.72697962,0.0003688,6]
[319552776,1710848256479,-2009.75001,0.00018,2]
[319552777,1710848256500,-2219.7783,0.00019,2]
[319552778,1710848256521,-1130.4642995,0.000194,2]
[319552779,1710848256543,-363.51520879,0.000195,2]
[319552780,1710848256565,-3753.28833282,0.000195,2]
[319552781,1710848256587,-211.38060212,0.0001998,2]
[319552782,1710848256609,-180.13,0.0002,2]
[319552783,1710848256629,-2209.0,0.000216,3]
[319552784,1710848256652,-250.0,0.00023,3]
[319552785,1710848256681,-1500.0,0.000242,2]
[319552786,1710848256712,-1500.0,0.000247,2]
[319552787,1710848256733,-600.0,0.000247,2]
[319552788,1710848256756,-431.4931,0.000248,2]
[319552789,1710848256779,-3641.20014677,0.00024874,2]
[319552794,1710848271837,-522.56926041,0.00024199,2]
[319552795,1710848271859,-3969.62076173,0.00024873,2]
[319552796,1710848271883,-15507.80997786,0.00024874,2]
[319552806,1710848336058,-334.09129241,0.000195,2]
[319552807,1710848336079,-19373.70530424,0.00024196,2]
[319552808,1710848336105,-292.20340335,0.00024197,2]
[319552828,1710848769830,-1053.13673053,0.00019474,2]
[319552829,1710848769853,-529.37904197,0.00019475,2]
[319552830,1710848769874,-406.94224259,0.00019475,2]
[319552831,1710848769896,-151.42,0.00019476,2]
[319552832,1710848769918,-3969.62076173,0.00019481,2]
[319552833,1710848769946,-776.0493619,0.00024099,2]
[319552834,1710848769969,-1467.2885,0.000241,2]
[319552835,1710848769992,-154.11102109,0.00024522,2]
[319552836,1710848770014,-156.64752417,0.00024572,2]
[319552837,1710848770039,-155.41977521,0.000248,2]
[319552838,1710848770072,-156.64752417,0.00024826,2]
[319552839,1710848770092,-155.0,0.00024872,2]
[319552840,1710848770115,-1071.84396192,0.00024873,2]
[319552841,1710848770134,-3825.9049,0.00024873,2]
[319552842,1710848770154,-9270.58865472,0.00024874,2]
[319552877,1710849031952,-534.12503528,0.00023378,2]
[319552878,1710849031962,-86.52494472,0.00023379,2]
[319552879,1710849031989,-224.0348275,0.00023379,2]
[319552880,1710849031999,-156.67876812,0.0002348,2]
[319552881,1710849032008,-156.67876812,0.00024077,2]
[319552882,1710849032018,-156.67876812,0.00024242,2]
[319552883,1710849032029,-163.6555038,0.00024342,2]
[319552884,1710849032040,-25.92336434,0.00024413,2]
[319552885,1710849032051,-992.20663566,0.00024413,2]
[319552886,1710849032061,-398.37336434,0.00024839,4]
[319552887,1710849032075,-536.0121111,0.00024839,4]
[319552888,1710849032111,-472.61452456,0.00024839,4]
[319552889,1710849032120,-483.47540217,0.00024873,2]
[319552890,1710849032132,-354.42,0.00024874,2]
[319552891,1710849032142,-8112.19007327,0.00024874,2]
[319552892,1710849032168,-8331.32602344,0.00024874,2]
[319552893,1710849032180,-2308.82865823,0.00024874,2]
[319553235,1710849037868,-946.00279789,0.00023378,2]
[319553236,1710849037885,-1891.19484,0.00023378,2]
[319553237,1710849037961,-1132.42312384,0.00023378,2]
[319553238,1710849037972,-14202.69636571,0.00024874,2]
[319553239,1710849037982,-1000.0,0.00024899,2]
[319553240,1710849037991,-22145.1836,0.000249,2]
[319553241,1710849038001,-2216.36,0.000249,2]
[319553242,1710849038010,-5219.94061712,0.00025,2]
[319553243,1710849038019,-300.0,0.00025,3]
[319553244,1710849038029,-499.99,0.00025,2]
[319553245,1710849038039,-155.0817669,0.00025008,2]
[319553246,1710849038049,-7259.4,0.00025367,2]
[319553247,1710849038058,-287.36860615,0.00025542,2]
[319553248,1710849038067,-153.34578133,0.0002558,2]
[319553249,1710849038079,-387.24,0.00025869,2]
[319553250,1710849038089,-151.01273991,0.0002625,2]
[319553251,1710849038098,-387.24,0.00026284,2]
[319553252,1710849038109,-1500.0,0.00026327,4]
[319553253,1710849038120,-1216.46329409,0.00026398,2]
[319553254,1710849038129,-300.0,0.00026399,2]
[319553255,1710849038138,-380.830886,0.00026399,2]
[319553256,1710849038147,-156.57,0.0002646,10]
[319553258,1710849038159,-1852.42,0.00026513,2]
[319553260,1710849038168,-500.0,0.0002652,2]
[319553262,1710849038177,-8615.69933739,0.00026534,2]
[319553264,1710849038193,-2519.77881681,0.00026534,2]
[319553267,1710849038206,-12764.5218458,0.00026534,2]
[319553269,1710849038215,-234.34,0.0002654,2]
[319553271,1710849038224,-250.0,0.0002655,2]
[319553273,1710849038234,-500.0,0.00026574,2]
[319553275,1710849038243,-250.0,0.00026614,2]
[319553276,1710849038253,-189.13,0.00026633,2]
[319553277,1710849038262,-153.34578133,0.00026653,2]
[319553278,1710849038272,-1018.13,0.00026677,2]
[319553279,1710849038282,-387.24,0.000267,2]
[319553280,1710849038292,-287.36860615,0.00026763,2]
[319553281,1710849038301,-1843.81,0.00026804,2]
[319553282,1710849038311,-287.36860615,0.00026838,2]
[319553283,1710849038322,-637.84,0.00026878,2]
[319553284,1710849038332,-200.0,0.00026878,2]
[319553285,1710849038341,-4350.94,0.00026878,2]
[319553286,1710849038350,-350.0,0.00027,3]
[319553287,1710849038359,-387.24,0.00027116,2]
[319553288,1710849038368,-151.01273991,0.00027281,2]
[319553289,1710849038377,-287.36860615,0.00027513,2]
[319553290,1710849038386,-387.24,0.00027531,2]
[319553291,1710849038396,-287.36860615,0.00027791,2]
[319553292,1710849038406,-120.48576734,0.00027836,2]
[319553293,1710849038438,-34.33961135,0.00027836,2]
[319553294,1710849038448,-277.87,0.00027867,120]
[319553295,1710849038458,-387.24,0.00027947,2]
[319553296,1710849038467,-585.12,0.00027965,2]
[319553297,1710849038477,-387.24,0.00028363,2]
[319553298,1710849038486,-163.06221667,0.00028638,2]
[319553299,1710849038495,-387.24,0.00028778,2]
[319553300,1710849038504,-180.0,0.00028869,2]
[319553301,1710849038513,-1018.13,0.00028941,2]
[319553302,1710849038522,-287.36860615,0.00028971,2]
[319553303,1710849038532,-400.0,0.00029,3]
[319553304,1710849038540,-150.0,0.00029087,2]
[319553305,1710849038549,-153.34578133,0.00029088,2]
[319553306,1710849038559,-250.0,0.00029233,2]
[319553307,1710849038568,-155.41977522,0.00029301,2]
[319553308,1710849038579,-265.3,0.00029842,2]
[319553309,1710849038589,-265.3,0.00029842,2]
[319553310,1710849038598,-265.3,0.00029842,2]
[319553311,1710849038607,-265.3,0.00029842,2]
[319553312,1710849038616,-150.0,0.00029842,2]
[319553313,1710849038625,-421.46,0.00029842,2]
[319553314,1710849038634,-2500.0,0.00029898,2]
[319553315,1710849038644,-2383.932,0.00029899,2]
[319553316,1710849038653,-19709.3952,0.00029899,2]
[319553317,1710849038662,-21.99148708,0.0002999,2]
[319553318,1710849038674,-146.53851292,0.0002999,2]
[319553319,1710849038684,-1767.89838237,0.00029997,2]
[319553320,1710849038693,-497.54742519,0.00029997,2]
[319553321,1710849038702,-172.09730562,0.00029997,2]
[319553322,1710849038711,-1052.64976899,0.00029997,2]
[319553323,1710849038720,-529.37904197,0.00029997,2]
[319553324,1710849038729,-18776.66116685,0.00029998,2]
[319553325,1710849038739,-11159.53206269,0.00029999,2]
[319553326,1710849038750,-1103.69009189,0.00029999,2]
[319553328,1710849039900,-52203.50874563,0.00029999,2]
[319553329,1710849039909,-10829.20796693,0.0003,4]
[319553330,1710849039967,-345.03927185,0.0003,4]
[319553331,1710849039992,-9435.0,0.0003,4]
[319553332,1710849040088,-589.63146508,0.0003,4]
[319553333,1710849040099,-650.4859971,0.0003,4]
[319553334,1710849040117,-1766.88313789,0.0003,4]
[319553335,1710849040126,-500.0,0.0003,2]
[319553336,1710849040135,-167.03,0.0003011,2]
[319553337,1710849040144,-158.53908923,0.00030296,7]
[319553338,1710849040156,-922.7,0.00030441,2]
[319553339,1710849040168,-922.7,0.00030441,2]
[319553341,1710849040180,-922.7,0.00030441,2]
[319553343,1710849040194,-229.4291844,0.00030578,2]
[319553345,1710849040207,-319.79687958,0.00030578,2]
[319553348,1710849040225,-484.17393602,0.00030578,2]
[319553350,1710849040234,-414.91,0.00030578,2]
[319553352,1710849040243,-287.36860615,0.00030743,7]
[319553354,1710849040253,-450.0,0.00031,3]
[319553356,1710849040262,-169.36639489,0.00031067,7]
[319553358,1710849040271,-20.88294386,0.00031205,2]
[319553478,1710849043474,-997.24705614,0.00031205,2]
[319553479,1710849043483,-193.30637988,0.00031347,4]
[319553480,1710849043493,-277.87,0.0003135,120]
[319553481,1710849043503,-455.47656398,0.0003146,2]
[319553482,1710849043522,-129.64343602,0.0003146,2]
[319553483,1710849043533,-134.32756398,0.0003148,7]
[319553484,1710849043560,-20.49781471,0.0003148,7]
[319553485,1710849043570,-163.05,0.00031557,2]
[319553486,1710849043583,-156.67876812,0.00031699,7]
[319553487,1710849043592,-156.67876812,0.0003219,7]
[319553488,1710849043601,-163.06221667,0.00032536,7]
[319553489,1710849043609,-164.3161095,0.00032568,7]
[319553490,1710849043619,-46.4163229,0.00033426,7]
[319553491,1710849043630,-240.95228325,0.00033426,7]
[319553492,1710849043640,-40.6427169,0.00033469,2]
[319553493,1710849043796,-977.4872831,0.00033469,2]
[319553494,1710849043806,-153.34578133,0.00033476,7]
[319553495,1710849043815,-158.49,0.000335,2]
[319553496,1710849043826,-158.49,0.000335,2]
[319553497,1710849043836,-287.36860615,0.00033974,7]
[319553498,1710849043845,-153.34578133,0.0003421,7]
[319553499,1710849043855,-150.0,0.00034548,10]
[319553500,1710849043865,-156.57,0.00034679,10]
[319553501,1710849043874,-277.87,0.00034834,120]
[319553502,1710849043885,-231.13247922,0.00034956,2]
[319553503,1710849043898,-353.98752078,0.00034956,2]
[319553504,1710849043907,-485.0845546,0.00035,10]
[319553505,1710849043919,-1785.9154454,0.00035,10]
[319553506,1710849043929,-1800.0,0.00035,20]
[319553507,1710849043939,-309.58218223,0.00035034,7]
[319553508,1710849043949,-156.67876812,0.00035145,7]
[319553509,1710849043958,-164.04,0.0003526,2]
[319553510,1710849043969,-1018.13,0.00035733,2]
[319553511,1710849043978,-31.60789755,0.00035978,2]
[319553512,1710849043990,-273.01210245,0.00035978,2]
[319553513,1710849044000,-156.67876812,0.00036012,7]
[319553514,1710849044010,-643.24708674,0.00036141,4]
[319553515,1710849044021,-156.67876812,0.00036159,7]
[319553516,1710849044030,-163.6555038,0.00036226,7]
[319553517,1710849044040,-287.36860615,0.00036272,7]
[319553518,1710849044050,-1973.0,0.00036438,20]
[319553519,1710849044059,-2668.93389,0.0003647,2]